fUST/lending_fUST_20250220
["ID","MTS","AMOUNT","RATE_DAILY","PERIOD"]
[353719549,1739997056222,-2761.91,0.00015013,2]
[353719551,1739997056233,-985.19,0.00015013,2]
[353719553,1739997056243,-364.62900794,0.00015013,2]
[353719555,1739997056253,-1566.42,0.00015013,2]
[353719557,1739997056263,-1154.72,0.00015013,2]
[353719559,1739997056273,-500.0,0.00015013,2]
[353719560,1739997056283,-1014.23,0.00015013,2]
[353719562,1739997056292,-940.03,0.00015013,2]
[353719564,1739997056302,-547.17,0.00015013,2]
[353719566,1739997056311,-1599.96,0.00015013,2]
[353719568,1739997056320,-536.64,0.00015095,2]
[353719570,1739997056330,-500.0,0.00015095,2]
[353719572,1739997056340,-500.0,0.00015095,2]
[353719574,1739997056349,-751.66,0.00015095,2]
[353719576,1739997056359,-1115.62,0.00015095,2]
[353719578,1739997056369,-685.96,0.00015095,2]
[353719579,1739997056377,-629.75,0.00015095,2]
[353719581,1739997056387,-500.0,0.00015095,2]
[353719583,1739997056397,-500.0,0.00015095,2]
[353719585,1739997056407,-3078.1,0.00015095,2]
[353719587,1739997056417,-500.0,0.00015095,2]
[353719589,1739997056426,-500.0,0.00015095,2]
[353719591,1739997056436,-935.56,0.00015095,2]
[353719592,1739997056445,-508.14,0.00015095,2]
[353719594,1739997056455,-500.0,0.00015095,2]
[353719596,1739997056465,-2163.51,0.00015095,2]
[353719598,1739997056475,-5889.74,0.00015095,2]
[353719600,1739997056485,-2330.03,0.00015095,2]
[353719602,1739997056497,-943.46,0.00015095,2]
[353719604,1739997056508,-1202.25,0.00015095,2]
[353719606,1739997056519,-10703.16,0.00015095,2]
[353719608,1739997056530,-2337.14,0.00015095,2]
[353719610,1739997056542,-1019.55,0.00015095,2]
[353719611,1739997056552,-784.1,0.00015095,2]
[353719613,1739997056562,-562.5,0.00015095,2]
[353719615,1739997056574,-1420.15,0.00015095,2]
[353719617,1739997056584,-26142.93,0.00015095,2]
[353719619,1739997056594,-1234.83,0.00015095,2]
[353719621,1739997056606,-568.54,0.00015095,2]
[353719623,1739997056617,-1995.83,0.00015095,2]
[353719632,1739997056692,-1107.93,0.00015095,2]
[353719634,1739997056710,-2525.01,0.00015095,2]
[353719635,1739997056719,-965.51,0.00015095,2]
[353719637,1739997056731,-2320.23,0.00015095,2]
[353719639,1739997056741,-532.58,0.00015095,2]
[353719641,1739997056751,-848.04,0.00015095,2]
[353719643,1739997056761,-1397.8,0.00015095,2]
[353719645,1739997056770,-10521.67,0.00015095,2]
[353719647,1739997056779,-1211.33,0.00015095,2]
[353719649,1739997056789,-2761.91,0.00015095,2]
[353719651,1739997056799,-985.19,0.00015095,2]
[353719653,1739997056808,-1566.42,0.00015095,2]
[353719655,1739997056817,-1154.72,0.00015095,2]
[353719656,1739997056827,-500.0,0.00015095,2]
[353719658,1739997056836,-1014.23,0.00015095,2]
[353719660,1739997056846,-940.03,0.00015095,2]
[353719662,1739997056855,-536.64,0.00015178,2]
[353719664,1739997056865,-165.37336994,0.00015178,2]
[353719666,1739997056874,-500.0,0.00015178,2]
[353719668,1739997056883,-751.66,0.00015178,2]
[353719670,1739997056893,-1115.62,0.00015178,2]
[353719671,1739997056903,-685.96,0.00015178,2]
[353719673,1739997056913,-629.75,0.00015178,2]
[353719675,1739997056922,-500.0,0.00015178,2]
[353719677,1739997056933,-500.0,0.00015178,2]
[353719679,1739997056943,-3078.1,0.00015178,2]
[353719681,1739997056953,-500.0,0.00015178,2]
[353719683,1739997056963,-500.0,0.00015178,2]
[353719685,1739997056973,-935.56,0.00015178,2]
[353719687,1739997056982,-508.14,0.00015178,2]
[353719689,1739997056992,-500.0,0.00015178,2]
[353719691,1739997057002,-2163.51,0.00015178,2]
[353719693,1739997057012,-5889.74,0.00015178,2]
[353719695,1739997057022,-2330.03,0.00015178,2]
[353719697,1739997057032,-943.46,0.00015178,2]
[353719699,1739997057042,-1202.25,0.00015178,2]
[353719701,1739997057052,-10703.16,0.00015178,2]
[353719703,1739997057061,-2337.14,0.00015178,2]
[353719705,1739997057071,-1019.55,0.00015178,2]
[353719706,1739997057080,-784.1,0.00015178,2]
[353719708,1739997057089,-562.5,0.00015178,2]
[353719710,1739997057099,-1420.15,0.00015178,2]
[353719712,1739997057109,-26142.93,0.00015178,2]
[353719714,1739997057119,-1234.83,0.00015178,2]
[353719716,1739997057128,-568.54,0.00015178,2]
[353719718,1739997057138,-1995.83,0.00015178,2]
[353719720,1739997057147,-1107.93,0.00015178,2]
[353719722,1739997057159,-2525.01,0.00015178,2]
[353719724,1739997057168,-965.51,0.00015178,2]
[353719726,1739997057178,-2320.23,0.00015178,2]
[353719728,1739997057188,-532.58,0.00015178,2]
[353719730,1739997057197,-848.04,0.00015178,2]
[353719732,1739997057207,-1397.8,0.00015178,2]
[353719734,1739997057217,-10521.67,0.00015178,2]
[353719736,1739997057226,-1211.33,0.00015178,2]
[353719737,1739997057235,-2761.91,0.00015178,2]
[353719739,1739997057244,-985.19,0.00015178,2]
[353719741,1739997057254,-1566.42,0.00015178,2]
[353719743,1739997057263,-1154.72,0.00015178,2]
[353719745,1739997057273,-500.0,0.00015178,2]
[353719747,1739997057283,-1014.23,0.00015178,2]
[353719749,1739997057292,-940.03,0.00015178,2]
[353719751,1739997057302,-1500.0,0.00015222,2]
[353719753,1739997057312,-1500.0,0.00015222,2]
[353719755,1739997057322,-167.17528665,0.00015259,2]
[353719757,1739997057332,-536.64,0.0001526,2]
[353719759,1739997057342,-396.43443022,0.0001526,2]
[353719761,1739997057351,-751.66,0.0001526,2]
[353719763,1739997057362,-1115.62,0.0001526,2]
[353719765,1739997057371,-685.96,0.0001526,2]
[353719767,1739997057380,-629.75,0.0001526,2]
[353719769,1739997057391,-500.0,0.0001526,2]
[353719771,1739997057402,-500.0,0.0001526,2]
[353719773,1739997057412,-3078.1,0.0001526,2]
[353719775,1739997057422,-500.0,0.0001526,2]
[353719777,1739997057431,-345.93563414,0.0001526,2]
[353719778,1739997057441,-935.56,0.0001526,2]
[353719780,1739997057451,-508.14,0.0001526,2]
[353719782,1739997057460,-500.0,0.0001526,2]
[353719784,1739997057470,-2163.51,0.0001526,2]
[353719786,1739997057484,-5889.74,0.0001526,2]
[353719789,1739997057499,-2330.03,0.0001526,2]
[353719790,1739997057508,-943.46,0.0001526,2]
[353719792,1739997057519,-1202.25,0.0001526,2]
[353719794,1739997057528,-10703.16,0.0001526,2]
[353719796,1739997057538,-2337.14,0.0001526,2]
[353719798,1739997057548,-1019.55,0.0001526,2]
[353719800,1739997057558,-784.1,0.0001526,2]
[353719802,1739997057568,-562.5,0.0001526,2]
[353719804,1739997057579,-1420.15,0.0001526,2]
[353719806,1739997057589,-26142.93,0.0001526,2]
[353719808,1739997057598,-1234.83,0.0001526,2]
[353719810,1739997057608,-568.54,0.0001526,2]
[353719812,1739997057618,-1995.83,0.0001526,2]
[353719814,1739997057627,-1107.93,0.0001526,2]
[353719816,1739997057637,-2525.01,0.0001526,2]
[353719818,1739997057646,-965.51,0.0001526,2]
[353719819,1739997057657,-2320.23,0.0001526,2]
[353719821,1739997057666,-532.58,0.0001526,2]
[353719823,1739997057676,-848.04,0.0001526,2]
[353719825,1739997057685,-1397.8,0.0001526,2]
[353719827,1739997057694,-10521.67,0.0001526,2]
[353719829,1739997057704,-1211.33,0.0001526,2]
[353719831,1739997057714,-2761.91,0.0001526,2]
[353719833,1739997057724,-985.19,0.0001526,2]
[353719835,1739997057734,-1566.42,0.0001526,2]
[353719837,1739997057745,-1154.72,0.0001526,2]
[353719839,1739997057755,-500.0,0.0001526,2]
[353719841,1739997057765,-1014.23,0.0001526,2]
[353719843,1739997057774,-940.03,0.0001526,2]
[353719845,1739997057784,-465.09871366,0.00015288,2]
[353719847,1739997057794,-536.64,0.00015342,2]
[353719849,1739997057803,-751.66,0.00015342,2]
[353719850,1739997057813,-1115.62,0.00015342,2]
[353719851,1739997057822,-685.96,0.00015342,2]
[353719852,1739997057832,-629.75,0.00015342,2]
[353719853,1739997057841,-500.0,0.00015342,2]
[353719854,1739997057851,-500.0,0.00015342,2]
[353719855,1739997057861,-3078.1,0.00015342,2]
[353719856,1739997057871,-500.0,0.00015342,2]
[353719857,1739997057880,-935.56,0.00015342,2]
[353719858,1739997057890,-508.14,0.00015342,2]
[353719859,1739997057899,-355.00486826,0.00015342,2]
[353719860,1739997057976,-2163.51,0.00015342,2]
[353719861,1739997057987,-5889.74,0.00015342,2]
[353719862,1739997057997,-2330.03,0.00015342,2]
[353719863,1739997058007,-943.46,0.00015342,2]
[353719864,1739997058017,-1202.25,0.00015342,2]
[353719865,1739997058026,-10703.16,0.00015342,2]
[353719866,1739997058035,-2337.14,0.00015342,2]
[353719867,1739997058044,-1019.55,0.00015342,2]
[353719868,1739997058053,-784.1,0.00015342,2]
[353719869,1739997058063,-562.5,0.00015342,2]
[353719870,1739997058072,-1420.15,0.00015342,2]
[353719871,1739997058082,-26142.93,0.00015342,2]
[353719872,1739997058091,-1234.83,0.00015342,2]
[353719874,1739997058101,-568.54,0.00015342,2]
[353719875,1739997058111,-1995.83,0.00015342,2]
[353719877,1739997058120,-1107.93,0.00015342,2]
[353719879,1739997058129,-2525.01,0.00015342,2]
[353719880,1739997058139,-965.51,0.00015342,2]
[353719882,1739997058149,-2320.23,0.00015342,2]
[353719884,1739997058163,-532.58,0.00015342,2]
[353719886,1739997058172,-848.04,0.00015342,2]
[353719888,1739997058182,-1397.8,0.00015342,2]
[353719890,1739997058191,-10521.67,0.00015342,2]
[353719892,1739997058200,-1211.33,0.00015342,2]
[353719894,1739997058209,-2761.91,0.00015342,2]
[353719897,1739997058220,-985.19,0.00015342,2]
[353719899,1739997058230,-690.11810677,0.00015342,2]
[353719912,1739997058346,-876.30189323,0.00015342,2]
[353719914,1739997058356,-1154.72,0.00015342,2]
[353719916,1739997058366,-500.0,0.00015342,2]
[353719918,1739997058375,-1014.23,0.00015342,2]
[353719920,1739997058384,-940.03,0.00015342,2]
[353719922,1739997058394,-613.73740092,0.00015401,2]
[353719924,1739997058405,-1000.0,0.00015421,2]
[353719926,1739997058415,-1000.0,0.00015421,2]
[353719927,1739997058424,-339.13041485,0.00015424,2]
[353719930,1739997058436,-197.50958515,0.00015424,2]
[353719932,1739997058445,-264.35933207,0.00015424,2]
[353719935,1739997058461,-932.67,0.00013863,2]
[353719937,1739997058471,-487.30066793,0.00015424,2]
[353719939,1739997058480,-1115.62,0.00015424,2]
[353719941,1739997058490,-685.96,0.00015424,2]
[353719943,1739997058503,-629.75,0.00015424,2]
[353719944,1739997058513,-500.0,0.00015424,2]
[353719946,1739997058522,-500.0,0.00015424,2]
[353719948,1739997058533,-3078.1,0.00015424,2]
[353719950,1739997058542,-170.70787749,0.00015424,2]
[353719952,1739997058552,-935.56,0.00015424,2]
[353719954,1739997058562,-508.14,0.00015424,2]
[353719956,1739997058572,-318.45686727,0.00015424,2]
[353719959,1739997058584,-1845.05313273,0.00015424,2]
[353719961,1739997058594,-5889.74,0.00015424,2]
[353719963,1739997058603,-2330.03,0.00015424,2]
[353719965,1739997058613,-943.46,0.00015424,2]
[353719967,1739997058622,-1202.25,0.00015424,2]
[353719969,1739997058632,-10703.16,0.00015424,2]
[353719971,1739997058641,-2337.14,0.00015424,2]
[353719973,1739997058651,-1019.55,0.00015424,2]
[353719975,1739997058663,-784.1,0.00015424,2]
[353719977,1739997058672,-562.5,0.00015424,2]
[353719979,1739997058682,-1420.15,0.00015424,2]
[353719981,1739997058692,-26142.93,0.00015424,2]
[353719983,1739997058701,-1234.83,0.00015424,2]
[353719985,1739997058711,-568.54,0.00015424,2]
[353719987,1739997058720,-1995.83,0.00015424,2]
[353719989,1739997058729,-1107.93,0.00015424,2]
[353719991,1739997058738,-2525.01,0.00015424,2]
[353719993,1739997058748,-965.51,0.00015424,2]
[353719995,1739997058757,-2320.23,0.00015424,2]
[353719997,1739997058767,-532.58,0.00015424,2]
[353719999,1739997058777,-848.04,0.00015424,2]
[353720001,1739997058787,-1397.8,0.00015424,2]
[353720003,1739997058797,-10521.67,0.00015424,2]
[353720005,1739997058806,-1211.33,0.00015424,2]
[353720007,1739997058816,-2761.91,0.00015424,2]
[353720009,1739997058826,-985.19,0.00015424,2]
[353720011,1739997058835,-1566.42,0.00015424,2]
[353720013,1739997058845,-1154.72,0.00015424,2]
[353720015,1739997058855,-500.0,0.00015424,2]
[353720017,1739997058865,-1014.23,0.00015424,2]
[353720019,1739997058875,-940.03,0.00015424,2]
[353720022,1739997058885,-613.73740092,0.00015501,2]
[353720024,1739997058894,-536.64,0.00015506,2]
[353720026,1739997058905,-751.66,0.00015506,2]
[353720028,1739997058914,-1115.62,0.00015506,2]
[353720030,1739997058923,-685.96,0.00015506,2]
[353720032,1739997058933,-629.75,0.00015506,2]
[353720034,1739997058942,-500.0,0.00015506,2]
[353720036,1739997058951,-515.99,0.00015506,2]
[353720038,1739997058962,-385.88552237,0.00015506,2]
[353720086,1739997059431,-500.0,0.00013698,2]
[353720088,1739997059441,-500.0,0.00013698,2]
[353720090,1739997059450,-157.34769832,0.00013698,2]
[353720092,1739997059462,-342.65230168,0.00013698,2]
[353720094,1739997059472,-500.0,0.0001378,2]
[353720096,1739997059481,-462.83709241,0.0001378,2]
[353720098,1739997059491,-500.0,0.00013863,2]
[353720100,1739997059505,-932.67,0.00013945,2]
[353720102,1739997059514,-500.0,0.00013945,2]
[353720104,1739997059524,-762.52312362,0.00014027,2]
[353720107,1739997059545,-170.14687638,0.00014027,2]
[353720109,1739997059555,-500.0,0.00014027,2]
[353720111,1739997059565,-682.49867258,0.00014109,2]
[353720114,1739997059578,-250.17132742,0.00014109,2]
[353720116,1739997059587,-500.0,0.00014109,2]
[353720118,1739997059596,-932.67,0.00014191,2]
[353720119,1739997059605,-500.0,0.00014191,2]
[353720121,1739997059615,-932.67,0.00014273,2]
[353720123,1739997059624,-500.0,0.00014273,2]
[353720125,1739997059634,-932.67,0.00014356,2]
[353720127,1739997059643,-500.0,0.00014356,2]
[353720129,1739997059652,-932.67,0.00014438,2]
[353720131,1739997059663,-500.0,0.00014438,2]
[353720133,1739997059672,-932.67,0.0001452,2]
[353720135,1739997059680,-932.67,0.00014602,2]
[353720137,1739997059690,-932.67,0.00014684,2]
[353720139,1739997059699,-932.67,0.00014767,2]
[353720141,1739997059707,-932.67,0.00014849,2]
[353720143,1739997059716,-932.67,0.00014931,2]
[353720145,1739997059725,-1599.96,0.00015095,2]
[353720147,1739997059734,-1599.96,0.00015178,2]
[353720148,1739997059743,-1599.96,0.0001526,2]
[353720150,1739997059752,-1599.96,0.00015342,2]
[353720152,1739997059761,-1197.02473958,0.00015424,2]
[353720155,1739997059774,-402.93526042,0.00015424,2]
[353720157,1739997059783,-2692.21447763,0.00015506,2]
[353720159,1739997059793,-935.56,0.00015506,2]
[353720161,1739997059802,-508.14,0.00015506,2]
[353720163,1739997059811,-2163.51,0.00015506,2]
[353720164,1739997059820,-5889.74,0.00015506,2]
[353720166,1739997059830,-2330.03,0.00015506,2]
[353720168,1739997059839,-943.46,0.00015506,2]
[353720170,1739997059848,-1202.25,0.00015506,2]
[353720172,1739997059858,-10703.16,0.00015506,2]
[353720174,1739997059867,-2337.14,0.00015506,2]
[353720176,1739997059876,-1019.55,0.00015506,2]
[353720178,1739997059885,-784.1,0.00015506,2]
[353720180,1739997059895,-562.5,0.00015506,2]
[353720182,1739997059904,-1420.15,0.00015506,2]
[353720184,1739997059914,-26142.93,0.00015506,2]
[353720186,1739997059924,-1234.83,0.00015506,2]
[353720188,1739997059933,-568.54,0.00015506,2]
[353720190,1739997059942,-1995.83,0.00015506,2]
[353720192,1739997059951,-1107.93,0.00015506,2]
[353720194,1739997059960,-2525.01,0.00015506,2]
[353720196,1739997059971,-965.51,0.00015506,2]
[353720198,1739997059980,-2320.23,0.00015506,2]
[353720200,1739997059989,-532.58,0.00015506,2]
[353720202,1739997059998,-848.04,0.00015506,2]
[353720203,1739997060007,-1397.8,0.00015506,2]
[353720205,1739997060017,-10521.67,0.00015506,2]
[353720213,1739997060087,-1211.33,0.00015506,2]
[353720215,1739997060097,-2761.91,0.00015506,2]
[353720217,1739997060107,-985.19,0.00015506,2]
[353720219,1739997060116,-57.32892927,0.00015506,2]
[353720222,1739997060132,-500.0,0.0001452,2]
[353720224,1739997060142,-1509.09107073,0.00015506,2]
[353720226,1739997060151,-1154.72,0.00015506,2]
[353720228,1739997060162,-500.0,0.00015506,2]
[353720230,1739997060171,-1014.23,0.00015506,2]
[353720232,1739997060181,-940.03,0.00015506,2]
[353720234,1739997060190,-1599.96,0.00015506,2]
[353720236,1739997060199,-1500.0,0.00015522,2]
[353720238,1739997060208,-1500.0,0.00015522,2]
[353720240,1739997060218,-1500.0,0.00015522,2]
[353720242,1739997060228,-536.81,0.00015589,2]
[353720244,1739997060238,-751.83,0.00015589,2]
[353720246,1739997060247,-1115.83201952,0.00015589,2]
[353720248,1739997060257,-686.14398936,0.00015589,2]
[353720250,1739997060267,-629.91,0.00015589,2]
[353720252,1739997060276,-211.61677832,0.00015589,2]
[353720253,1739997060286,-3078.14168607,0.00015589,2]
[353720256,1739997060296,-935.72336587,0.00015589,2]
[353720258,1739997060306,-508.37498108,0.00015589,2]
[353720260,1739997060315,-2163.51474119,0.00015589,2]
[353720262,1739997060325,-5889.95155046,0.00015589,2]
[353720264,1739997060334,-2221.75403454,0.00015589,2]
[353720266,1739997060346,-108.32903006,0.00015589,2]
[353720268,1739997060355,-943.65716264,0.00015589,2]
[353720270,1739997060365,-1202.27799085,0.00015589,2]
[353720272,1739997060375,-10703.16111286,0.00015589,2]
[353720274,1739997060385,-2337.14225558,0.00015589,2]
[353720276,1739997060395,-1019.7271738,0.00015589,2]
[353720278,1739997060404,-784.25546464,0.00015589,2]
[353720280,1739997060415,-562.5,0.00015589,2]
[353720282,1739997060424,-1420.17663562,0.00015589,2]
[353720284,1739997060433,-26143.08662734,0.00015589,2]
[353720286,1739997060443,-1234.94,0.00015589,2]
[353720288,1739997060452,-568.63384719,0.00015589,2]
[353720290,1739997060461,-1996.00947542,0.00015589,2]
[353720292,1739997060470,-1108.05188345,0.00015589,2]
[353720294,1739997060481,-2525.03,0.00015589,2]
[353720296,1739997060490,-965.71,0.00015589,2]
[353720298,1739997060503,-2320.26,0.00015589,2]
[353720300,1739997060512,-532.71,0.00015589,2]
[353720302,1739997060521,-848.2557394,0.00015589,2]
[353720304,1739997060530,-1397.97244067,0.00015589,2]
[353720306,1739997060539,-10521.72589072,0.00015589,2]
[353720308,1739997060548,-1211.36,0.00015589,2]
[353720310,1739997060557,-2762.11048065,0.00015589,2]
[353720312,1739997060567,-985.22100684,0.00015589,2]
[353720314,1739997060577,-1566.54642689,0.00015589,2]
[353720316,1739997060586,-1154.77222728,0.00015589,2]
[353720318,1739997060596,-414.34108214,0.00015589,2]
[353720320,1739997060606,-1014.27641406,0.00015589,2]
[353720322,1739997060616,-940.04055816,0.00015589,2]
[353720324,1739997060625,-1600.14632677,0.00015589,2]
[353720326,1739997060635,-613.73740092,0.00015601,2]
[353720328,1739997060644,-613.73740092,0.00015701,2]
[353720330,1739997060653,-1500.0,0.00015722,2]
[353720332,1739997060667,-613.73740092,0.00015801,2]
[353720334,1739997060676,-700.0,0.00015808,2]
[353720336,1739997060685,-823.0,0.00015874,2]
[353720338,1739997060694,-150.0,0.000159,2]
[353720340,1739997060704,-613.73740092,0.00015901,2]
[353720342,1739997060714,-14788.53963285,0.0001599,2]
[353720344,1739997060723,-1183.40155707,0.00016,2]
[353720346,1739997060732,-9340.19456449,0.00016,2]
[353720348,1739997060743,-613.73740092,0.00016001,2]
[353720350,1739997060752,-465.00493568,0.00016053,2]
[353720352,1739997060762,-613.73740092,0.00016101,2]
[353720354,1739997060771,-499.0,0.00016164,2]
[353720356,1739997060781,-43045.68016101,0.000162,2]
[353720358,1739997060790,-43045.68016097,0.000162,2]
[353720360,1739997060799,-43045.68016097,0.000162,2]
[353720362,1739997060809,-613.73740092,0.00016201,2]
[353720364,1739997060819,-613.73740092,0.00016301,2]
[353720366,1739997060829,-613.73740092,0.00016401,2]
[353720368,1739997060838,-500.0,0.00016422,2]
[353720370,1739997060848,-1566.15182201,0.00016422,2]
[353720372,1739997060857,-1000.0,0.00016438,2]
[353720374,1739997060866,-1000.0,0.00016438,2]
[353720376,1739997060876,-397.53754396,0.00016438,2]
[353720378,1739997060887,-12000.0,0.00016438,2]
[353720380,1739997060897,-250.0,0.00016448,2]
[353720382,1739997060908,-27933.97,0.000165,2]
[353720384,1739997060918,-613.73740092,0.00016501,2]
[353720386,1739997060929,-2000.0,0.0001652,2]
[353720388,1739997060939,-1000.0,0.0001652,2]
[353720390,1739997060948,-613.73740092,0.00016601,2]
[353720392,1739997060958,-43045.68016097,0.00016667,2]
[353720394,1739997060968,-613.73740092,0.00016701,2]
[353720396,1739997060977,-613.73740092,0.00016801,2]
[353720398,1739997060988,-665.25175723,0.0001682,2]
[353720400,1739997060997,-1501.30101814,0.0001682,2]
[353720402,1739997061006,-1097.04980234,0.0001682,2]
[353720404,1739997061016,-2451.42546737,0.0001687,2]
[353720406,1739997061025,-613.73740092,0.00016901,2]
[353720408,1739997061035,-1006.50607972,0.0001695,2]
[353720410,1739997061044,-453.73867444,0.00016996,2]
[353720412,1739997061053,-500.0,0.00017,7]
[353720414,1739997061063,-500.0,0.00017,7]
[353720415,1739997061072,-500.0,0.00017,7]
[353720416,1739997061141,-500.0,0.00017,7]
[353720417,1739997061150,-500.0,0.00017,7]
[353720418,1739997061162,-500.0,0.00017,7]
[353720419,1739997061171,-500.0,0.00017,7]
[353720420,1739997061180,-500.0,0.00017,7]
[353720421,1739997061190,-500.0,0.00017,7]
[353720422,1739997061199,-566.69,0.00017,7]
[353720423,1739997061208,-613.73740092,0.00017001,2]
[353720424,1739997061218,-2001.66515834,0.0001702,2]
[353720425,1739997061228,-613.73740092,0.00017101,2]
[353720427,1739997061237,-532.031027,0.00017123,2]
[353720429,1739997061246,-700.0,0.00017178,2]
[353720431,1739997061255,-361.8870903,0.00017178,2]
[353720433,1739997061265,-1000.0,0.000172,2]
[353720435,1739997061276,-613.73740092,0.00017201,2]
[353720437,1739997061286,-600.0,0.0001728,2]
[353720439,1739997061296,-613.73740092,0.00017301,2]
[353720441,1739997061305,-22211.10838907,0.00017331,30]
[353720443,1739997061315,-168.73426959,0.0001737,2]
[353720445,1739997061325,-613.73740092,0.00017401,2]
[353720447,1739997061334,-1152.0,0.00017426,2]
[353720449,1739997061343,-600.0,0.0001746,2]
[353720451,1739997061352,-1000.000001,0.000175,2]
[353720453,1739997061362,-613.73740092,0.00017501,2]
[353720455,1739997061372,-1971.0,0.00017529,2]
[353720457,1739997061382,-545.771,0.00017529,2]
[353720459,1739997061392,-2288.0,0.00017529,2]
[353720461,1739997061401,-449.862,0.00017529,2]
[353720463,1739997061414,-499.0,0.00017534,4]
[353720465,1739997061424,-613.73740092,0.00017601,2]
[353720467,1739997061434,-2500.0,0.00017627,2]
[353720469,1739997061443,-2500.0,0.00017636,2]
[353720471,1739997061453,-2843.1019312,0.0001764,2]
[353720473,1739997061462,-600.0,0.0001764,2]
[353720475,1739997061471,-2500.0,0.00017645,2]
[353720477,1739997061480,-557.1188801,0.00017649,2]
[353720479,1739997061491,-557.1188801,0.00017649,2]
[353720481,1739997061504,-557.1188801,0.00017649,2]
[353720483,1739997061513,-557.1188801,0.00017649,2]
[353720485,1739997061522,-557.1188801,0.00017649,2]
[353720487,1739997061532,-557.1188801,0.00017649,2]
[353720489,1739997061542,-557.1188801,0.00017649,2]
[353720491,1739997061551,-557.1188801,0.00017649,2]
[353720493,1739997061561,-1114.2377602,0.00017649,2]
[353720495,1739997061571,-1114.2377602,0.00017649,2]
[353720497,1739997061581,-1114.2377602,0.00017649,2]
[353720499,1739997061590,-557.1188801,0.00017649,2]
[353720502,1739997061605,-557.1188801,0.00017649,2]
[353720505,1739997061623,-557.1188801,0.00017649,2]
[353720508,1739997061640,-557.1188801,0.00017649,2]
[353720511,1739997061658,-557.1188801,0.00017649,2]
[353720514,1739997061678,-1000.0,0.0001765,2]
[353720517,1739997061695,-2500.0,0.00017653,2]
[353720520,1739997061714,-2500.0,0.00017662,2]
[353720522,1739997061728,-2500.0,0.00017671,2]
[353720525,1739997061744,-613.73740092,0.00017701,2]
[353720528,1739997061764,-447.0,0.00017723,2]
[353720531,1739997061782,-447.0,0.00017723,2]
[353720534,1739997061799,-447.0,0.00017723,2]
[353720536,1739997061815,-447.0,0.00017723,2]
[353720539,1739997061833,-447.0,0.00017723,2]
[353720542,1739997061849,-447.0,0.00017723,2]
[353720544,1739997061863,-447.0,0.00017723,2]
[353720547,1739997061877,-447.0,0.00017723,2]
[353720549,1739997061892,-447.0,0.00017723,2]
[353720552,1739997061907,-447.0,0.00017723,2]
[353720554,1739997061923,-447.0,0.00017723,2]
[353720557,1739997061938,-447.0,0.00017723,2]
[353720559,1739997061953,-447.0,0.00017723,2]
[353720562,1739997061967,-447.0,0.00017723,2]
[353720564,1739997061982,-625.0,0.00017723,2]
[353720567,1739997061997,-625.0,0.00017723,2]
[353720569,1739997062010,-625.0,0.00017723,2]
[353720572,1739997062024,-625.0,0.00017723,2]
[353720574,1739997062036,-625.0,0.00017723,2]
[353720576,1739997062045,-625.0,0.00017723,2]
[353720578,1739997062055,-625.0,0.00017723,2]
[353720580,1739997062064,-625.0,0.00017723,2]
[353720582,1739997062073,-625.0,0.00017723,2]
[353720584,1739997062082,-625.0,0.00017723,2]
[353720585,1739997062092,-625.0,0.00017723,2]
[353720587,1739997062103,-625.0,0.00017723,2]
[353720589,1739997062112,-625.0,0.00017723,2]
[353720591,1739997062121,-625.0,0.00017723,2]